[Event "Live Chess"]
[Site "Chess.com"]
[Date "2023.05.20"]
[Round "-"]
[White "SupremeTactician"]
[Black "elizaveta_frundina"]
[Result "1-0"]
[WhiteElo "2400"]
[BlackElo "1565"]
[TimeControl "300"]
[EndTime "12:09:25 PDT"]
[Termination "SupremeTactician won by resignation"]

1. e4 {[%clk 0:04:58.5]} 1... c5 {[%clk 0:04:56.3]} 2. Nf3 {[%clk 0:04:48.5]}
2... d6 {[%clk 0:04:55]} 3. c3 {[%clk 0:04:47.7]} 3... e6 {[%clk 0:04:50.3]} 4.
Bd3 {[%clk 0:04:47.1]} 4... e5 {[%clk 0:04:47.5]} 5. Bc2 {[%clk 0:04:46.1]} 5...
Nf6 {[%clk 0:04:45.9]} 6. O-O {[%clk 0:04:45.2]} 6... Be7 {[%clk 0:04:44.4]} 7.
d3 {[%clk 0:04:43.8]} 7... O-O {[%clk 0:04:42.8]} 8. Re1 {[%clk 0:04:41.8]} 8...
Be6 {[%clk 0:04:40.7]} 9. Nbd2 {[%clk 0:04:40.3]} 9... Nc6 {[%clk 0:04:37.8]}
10. Nf1 {[%clk 0:04:37.9]} 10... d5 {[%clk 0:04:29.4]} 11. Ng3 {[%clk
0:04:33.1]} 11... dxe4 {[%clk 0:04:22.3]} 12. dxe4 {[%clk 0:04:33]} 12... Qxd1
{[%clk 0:04:21]} 13. Rxd1 {[%clk 0:04:32.1]} 13... Rad8 {[%clk 0:04:19]} 14. Bg5
{[%clk 0:04:30.8]} 14... h6 {[%clk 0:04:11.8]} 15. Bxf6 {[%clk 0:04:29.6]} 15...
Bxf6 {[%clk 0:04:10.9]} 16. Rxd8 {[%clk 0:04:22.9]} 16... Rxd8 {[%clk
0:04:09.5]} 17. Rd1 {[%clk 0:04:22.8]} 17... Rxd1+ {[%clk 0:04:03.8]} 18. Bxd1
{[%clk 0:04:22.7]} 18... b5 {[%clk 0:03:53.2]} 19. a3 {[%clk 0:04:18]} 19... a5
{[%clk 0:03:51.6]} 20. Be2 {[%clk 0:04:14.9]} 20... b4 {[%clk 0:03:49.7]} 21.
axb4 {[%clk 0:04:13.8]} 21... cxb4 {[%clk 0:03:47.5]} 22. Bb5 {[%clk 0:04:10.7]}
22... Na7 {[%clk 0:03:43.1]} 23. Ba4 {[%clk 0:04:09]} 23... Kf8 {[%clk
0:03:34.6]} 24. cxb4 {[%clk 0:04:06.9]} 24... axb4 {[%clk 0:03:33.4]} 25. Ne1
{[%clk 0:04:02.4]} 25... Ke7 {[%clk 0:03:25]} 26. Nd3 {[%clk 0:04:01.5]} 26...
b3 {[%clk 0:03:23]} 27. Nc5 {[%clk 0:03:59.2]} 27... Kd6 {[%clk 0:03:12.7]} 28.
Nxe6 {[%clk 0:03:56.9]} 28... Kxe6 {[%clk 0:03:08.9]} 29. Bxb3+ {[%clk
0:03:55.8]} 29... Ke7 {[%clk 0:03:08]} 30. Nf5+ {[%clk 0:03:54.4]} 30... Kf8
{[%clk 0:03:05.7]} 31. Ba4 {[%clk 0:03:53.5]} 31... Nc8 {[%clk 0:02:58]} 32. Kf1
{[%clk 0:03:50.1]} 32... Bg5 {[%clk 0:02:53.1]} 33. Ke2 {[%clk 0:03:46]} 33...
g6 {[%clk 0:02:52.1]} 34. Ne3 {[%clk 0:03:45.2]} 34... Ke7 {[%clk 0:02:48.7]}
35. Nd5+ {[%clk 0:03:43.7]} 35... Kd6 {[%clk 0:02:45.5]} 36. Be8 {[%clk
0:03:42.4]} 36... Bc1 {[%clk 0:02:30.1]} 37. b4 {[%clk 0:03:38]} 37... Ne7
{[%clk 0:02:27.8]} 38. Bxf7 {[%clk 0:03:33.9]} 38... Nxd5 {[%clk 0:02:18.5]} 39.
exd5 {[%clk 0:03:33.3]} 39... Ba3 {[%clk 0:02:16.3]} 40. b5 {[%clk 0:03:32.1]}
40... Kc5 {[%clk 0:02:13.4]} 41. Bxg6 {[%clk 0:03:25.3]} 41... Kxd5 {[%clk
0:02:08.5]} 42. Be8 {[%clk 0:03:24.5]} 42... Bc5 {[%clk 0:02:03.1]} 43. f3
{[%clk 0:03:22.5]} 43... e4 {[%clk 0:01:58]} 44. Bc6+ {[%clk 0:03:20.6]} 44...
Kc4 {[%clk 0:01:54.9]} 45. fxe4 {[%clk 0:03:19.6]} 45... Kd4 {[%clk 0:01:52.6]}
46. Kf3 {[%clk 0:03:18]} 46... Ke5 {[%clk 0:01:50.7]} 47. h3 {[%clk 0:03:16.3]}
47... Bd4 {[%clk 0:01:46.8]} 48. h4 {[%clk 0:03:13.6]} 48... Kf6 {[%clk
0:01:45.8]} 49. g4 {[%clk 0:03:12.4]} 49... Kg6 {[%clk 0:01:41.3]} 50. Kf4
{[%clk 0:03:09.5]} 50... Kf6 {[%clk 0:01:37]} 51. g5+ {[%clk 0:03:08.6]} 51...
hxg5+ {[%clk 0:01:34.9]} 52. hxg5+ {[%clk 0:03:08.5]} 52... Kg6 {[%clk
0:01:27.3]} 53. Be8+ {[%clk 0:03:07.4]} 53... Kg7 {[%clk 0:01:23.5]} 54. Kf5
{[%clk 0:03:07.3]} 54... Bb6 {[%clk 0:01:20.8]} 55. e5 {[%clk 0:03:05]} 55...
Be3 {[%clk 0:01:16.6]} 56. Ke6 {[%clk 0:03:02.8]} 56... Bxg5 {[%clk 0:01:11.6]}
57. b6 {[%clk 0:03:01.6]} 57... Be3 {[%clk 0:01:04.5]} 58. b7 {[%clk 0:03:00.9]}
58... Ba7 {[%clk 0:01:03.1]} 59. Kd7 {[%clk 0:03:00.4]} 59... Bb8 {[%clk
0:00:58.7]} 60. e6 {[%clk 0:02:59.7]} 60... Kf6 {[%clk 0:00:43.8]} 61. Bh5
{[%clk 0:02:57.7]} 61... Be5 {[%clk 0:00:28.3]} 62. e7 {[%clk 0:02:57.6]} 1-0

[Event "Live Chess"]
[Site "Chess.com"]
[Date "2023.05.20"]
[Round "-"]
[White "azimchess2019"]
[Black "Andysav3"]
[Result "0-1"]
[WhiteElo "1364"]
[BlackElo "1698"]
[TimeControl "300"]
[EndTime "12:09:26 PDT"]
[Termination "Andysav3 won by resignation"]

1. d4 {[%clk 0:04:55.2]} 1... Nf6 {[%clk 0:04:57.1]} 2. c4 {[%clk 0:04:54]} 2...
c5 {[%clk 0:04:55.9]} 3. d5 {[%clk 0:04:51.8]} 3... b5 {[%clk 0:04:55]} 4. cxb5
{[%clk 0:04:50.4]} 4... a6 {[%clk 0:04:53.9]} 5. Nf3 {[%clk 0:04:43.3]} 5...
axb5 {[%clk 0:04:47]} 6. Bf4 {[%clk 0:04:34.8]} 6... d6 {[%clk 0:04:36.5]} 7. e3
{[%clk 0:04:27.9]} 7... Qb6 {[%clk 0:04:19.2]} 8. Qb3 {[%clk 0:04:17.3]} 8...
Ba6 {[%clk 0:04:01.3]} 9. Nc3 {[%clk 0:04:07.5]} 9... b4 {[%clk 0:03:37.6]} 10.
Nb1 {[%clk 0:03:55.5]} 10... Nbd7 {[%clk 0:03:25.8]} 11. Nbd2 {[%clk 0:03:51]}
11... g6 {[%clk 0:03:15.1]} 12. Bc4 {[%clk 0:03:43.5]} 12... Bg7 {[%clk
0:03:07.8]} 13. O-O {[%clk 0:03:39.4]} 13... O-O {[%clk 0:03:06.7]} 14. a3
{[%clk 0:03:35.9]} 14... Bxc4 {[%clk 0:02:45.8]} 15. Qxc4 {[%clk 0:03:27.2]}
15... Rfb8 {[%clk 0:02:33.7]} 16. Rfb1 {[%clk 0:03:20.9]} 16... h6 {[%clk
0:02:23.3]} 17. e4 {[%clk 0:03:15.3]} 17... Ng4 {[%clk 0:02:18.9]} 18. h3 {[%clk
0:03:10.6]} 18... Nge5 {[%clk 0:02:15.7]} 19. Qc2 {[%clk 0:03:05]} 19... b3
{[%clk 0:02:04.7]} 20. Qd1 {[%clk 0:02:40.1]} 20... Ra4 {[%clk 0:02:03.2]} 21.
Ne1 {[%clk 0:02:32.1]} 21... c4 {[%clk 0:01:57.2]} 22. Be3 {[%clk 0:02:22.2]}
22... Nc5 {[%clk 0:01:50.8]} 23. Qe2 {[%clk 0:02:19.2]} 23... Qb5 {[%clk
0:01:42.2]} 24. f4 {[%clk 0:02:18]} 24... Ned3 {[%clk 0:01:38.1]} 25. Nxd3
{[%clk 0:02:08]} 25... Nxd3 {[%clk 0:01:37]} 26. Nf3 {[%clk 0:02:01.1]} 26...
Nxb2 {[%clk 0:01:32]} 27. Rxb2 {[%clk 0:01:59.4]} 27... c3 {[%clk 0:01:21.1]}
28. Rbb1 {[%clk 0:01:52.5]} 28... Qxe2 {[%clk 0:01:19.2]} 29. Re1 {[%clk
0:01:43.4]} 29... Qd3 {[%clk 0:01:14.9]} 30. Rad1 {[%clk 0:01:40.9]} 30... Qc4
{[%clk 0:01:12.2]} 31. e5 {[%clk 0:01:34.3]} 31... c2 {[%clk 0:01:10.4]} 32. Rd4
{[%clk 0:01:33.3]} 32... Qb5 {[%clk 0:01:03.1]} 33. Rb4 {[%clk 0:01:10.4]} 33...
Rxb4 {[%clk 0:01:01]} 34. axb4 {[%clk 0:01:10.3]} 34... Qxb4 {[%clk 0:00:59.5]}
35. Bd2 {[%clk 0:01:10.2]} 35... Qc5+ {[%clk 0:00:55.6]} 36. Be3 {[%clk
0:01:07.6]} 36... Qxd5 {[%clk 0:00:54.3]} 37. Nd4 {[%clk 0:01:01.1]} 37... dxe5
{[%clk 0:00:52.2]} 38. fxe5 {[%clk 0:01:01]} 38... Bxe5 {[%clk 0:00:50.4]} 39.
Nf3 {[%clk 0:00:59.5]} 39... b2 {[%clk 0:00:48.4]} 40. Nxe5 {[%clk 0:00:58]}
40... Qxe5 {[%clk 0:00:46.3]} 41. Bf2 {[%clk 0:00:57.4]} 41... Qxe1+ {[%clk
0:00:44.2]} 42. Bxe1 {[%clk 0:00:57.3]} 42... c1=Q {[%clk 0:00:43.1]} 0-1

[Event "Live Chess"]
[Site "Chess.com"]
[Date "2023.05.20"]
[Round "-"]
[White "OSmith06"]
[Black "PaulyD81"]
[Result "1-0"]
[WhiteElo "1683"]
[BlackElo "1148"]
[TimeControl "300"]
[EndTime "12:09:34 PDT"]
[Termination "OSmith06 won by checkmate"]

1. e4 {[%clk 0:04:59.4]} 1... d5 {[%clk 0:04:57.5]} 2. exd5 {[%clk 0:04:58.3]}
2... Qxd5 {[%clk 0:04:57.4]} 3. Nf3 {[%clk 0:04:58]} 3... Nf6 {[%clk 0:04:40.9]}
4. d4 {[%clk 0:04:56.9]} 4... Qa5+ {[%clk 0:04:32.5]} 5. Bd2 {[%clk 0:04:54]}
5... Qh5 {[%clk 0:04:16.8]} 6. Be2 {[%clk 0:04:51.5]} 6... Qd5 {[%clk
0:04:11.7]} 7. c4 {[%clk 0:04:48.8]} 7... Qd8 {[%clk 0:04:06.5]} 8. Nc3 {[%clk
0:04:45.3]} 8... Bf5 {[%clk 0:04:03.7]} 9. O-O {[%clk 0:04:40.9]} 9... e6 {[%clk
0:04:02.7]} 10. Bg5 {[%clk 0:04:36]} 10... Be7 {[%clk 0:03:59.8]} 11. Ne5 {[%clk
0:04:33.3]} 11... Ne4 {[%clk 0:03:37.4]} 12. Bxe7 {[%clk 0:04:26]} 12... Qxe7
{[%clk 0:03:35.4]} 13. Nxe4 {[%clk 0:04:14.7]} 13... Bxe4 {[%clk 0:03:33.3]} 14.
f3 {[%clk 0:04:07.9]} 14... Bg6 {[%clk 0:03:20.7]} 15. Nxg6 {[%clk 0:04:01.1]}
15... hxg6 {[%clk 0:03:18.3]} 16. Qa4+ {[%clk 0:04:00.3]} 16... Nd7 {[%clk
0:03:14.2]} 17. Rfe1 {[%clk 0:03:58.1]} 17... c6 {[%clk 0:03:12.4]} 18. d5
{[%clk 0:03:52]} 18... cxd5 {[%clk 0:02:54]} 19. cxd5 {[%clk 0:03:50.5]} 19...
exd5 {[%clk 0:02:28.3]} 20. Bb5 {[%clk 0:03:47.5]} 20... Qxe1+ {[%clk
0:01:59.4]} 21. Rxe1+ {[%clk 0:03:47.4]} 21... Kd8 {[%clk 0:01:46.9]} 22. Bxd7
{[%clk 0:03:47.3]} 22... a6 {[%clk 0:01:36.1]} 23. Be8 {[%clk 0:03:43.2]} 23...
b5 {[%clk 0:01:28.5]} 24. Qa5+ {[%clk 0:03:32.3]} 24... Kc8 {[%clk 0:01:22.1]}
25. Rc1+ {[%clk 0:03:26.8]} 25... Kb7 {[%clk 0:01:18]} 26. Qc7# {[%clk
0:03:23.9]} 1-0

[Event "Live Chess"]
[Site "Chess.com"]
[Date "2023.05.20"]
[Round "-"]
[White "MarkLim1"]
[Black "HoarseyHorsey"]
[Result "1-0"]
[WhiteElo "1672"]
[BlackElo "1384"]
[TimeControl "300"]
[EndTime "12:09:37 PDT"]
[Termination "MarkLim1 won by resignation"]

1. d4 {[%clk 0:04:58.4]} 1... Nf6 {[%clk 0:04:58.8]} 2. Nf3 {[%clk 0:04:57.6]}
2... d5 {[%clk 0:04:58.2]} 3. c4 {[%clk 0:04:56.5]} 3... e6 {[%clk 0:04:51.9]}
4. cxd5 {[%clk 0:04:55.6]} 4... exd5 {[%clk 0:04:50.9]} 5. Nc3 {[%clk
0:04:54.7]} 5... Bg4 {[%clk 0:04:49.5]} 6. Bg5 {[%clk 0:04:52.8]} 6... c6 {[%clk
0:04:48.2]} 7. e3 {[%clk 0:04:51.7]} 7... Be7 {[%clk 0:04:45.4]} 8. Be2 {[%clk
0:04:49.6]} 8... O-O {[%clk 0:04:43.6]} 9. h3 {[%clk 0:04:48.6]} 9... Bh5 {[%clk
0:04:42.4]} 10. Bxf6 {[%clk 0:04:45.1]} 10... Bxf6 {[%clk 0:04:41.2]} 11. O-O
{[%clk 0:04:44]} 11... Nd7 {[%clk 0:04:39.4]} 12. b4 {[%clk 0:04:43]} 12... Qc7
{[%clk 0:04:31.5]} 13. a4 {[%clk 0:04:41]} 13... a6 {[%clk 0:04:25.5]} 14. Qc2
{[%clk 0:04:39.8]} 14... b5 {[%clk 0:04:22.4]} 15. axb5 {[%clk 0:04:37.8]} 15...
axb5 {[%clk 0:04:21.2]} 16. Nxd5 {[%clk 0:04:33.8]} 16... Rxa1 {[%clk
0:04:12.5]} 17. Rxa1 {[%clk 0:04:31.7]} 17... Qd6 {[%clk 0:04:07.4]} 18. Nxf6+
{[%clk 0:04:27.6]} 18... Nxf6 {[%clk 0:04:04.9]} 19. Ra6 {[%clk 0:04:26.1]}
19... Rc8 {[%clk 0:04:03.3]} 20. Ne5 {[%clk 0:04:21]} 20... Bxe2 {[%clk
0:04:01.2]} 21. Qxe2 {[%clk 0:04:19.6]} 21... Qxb4 {[%clk 0:03:54]} 22. Nxc6
{[%clk 0:03:58.6]} 22... Qb1+ {[%clk 0:03:49.8]} 23. Kh2 {[%clk 0:03:57.5]}
23... Ne4 {[%clk 0:03:37.6]} 24. Ne7+ {[%clk 0:03:54.9]} 24... Kf8 {[%clk
0:03:35.9]} 25. Nxc8 {[%clk 0:03:53.4]} 1-0

[Event "Live Chess"]
[Site "Chess.com"]
[Date "2023.05.20"]
[Round "-"]
[White "JohanKjeldahl"]
[Black "PLZ909"]
[Result "1-0"]
[WhiteElo "1803"]
[BlackElo "1272"]
[TimeControl "300"]
[EndTime "12:09:42 PDT"]
[Termination "JohanKjeldahl won by checkmate"]

1. e4 {[%clk 0:04:57.2]} 1... d5 {[%clk 0:04:59.9]} 2. exd5 {[%clk 0:04:54.9]}
2... Qxd5 {[%clk 0:04:59.8]} 3. Nc3 {[%clk 0:04:53.1]} 3... Qa5 {[%clk
0:04:59.1]} 4. b4 {[%clk 0:04:51.6]} 4... Qb6 {[%clk 0:04:45.6]} 5. Nf3 {[%clk
0:04:46]} 5... Bg4 {[%clk 0:04:43.7]} 6. Be2 {[%clk 0:04:43.4]} 6... Nf6 {[%clk
0:04:41.4]} 7. O-O {[%clk 0:04:40.3]} 7... c6 {[%clk 0:04:38.1]} 8. a3 {[%clk
0:04:25.1]} 8... e6 {[%clk 0:04:34.2]} 9. Bb2 {[%clk 0:04:19.3]} 9... Nbd7
{[%clk 0:04:26.9]} 10. h3 {[%clk 0:04:17.5]} 10... h5 {[%clk 0:04:25.3]} 11. d3
{[%clk 0:03:52.2]} 11... O-O-O {[%clk 0:04:18.1]} 12. Qe1 {[%clk 0:03:38.7]}
12... Bd6 {[%clk 0:04:04.5]} 13. Ne4 {[%clk 0:03:31.4]} 13... Nxe4 {[%clk
0:04:02.4]} 14. dxe4 {[%clk 0:03:30.1]} 14... Bb8 {[%clk 0:03:59.3]} 15. Nh2
{[%clk 0:02:52]} 15... Qc7 {[%clk 0:03:52.5]} 16. f4 {[%clk 0:02:48.4]} 16...
Bxe2 {[%clk 0:03:41.5]} 17. Qxe2 {[%clk 0:02:46.9]} 17... f6 {[%clk 0:03:39.7]}
18. Rad1 {[%clk 0:02:42.2]} 18... e5 {[%clk 0:03:29]} 19. f5 {[%clk 0:02:38.3]}
19... h4 {[%clk 0:03:24.3]} 20. c4 {[%clk 0:02:34.1]} 20... Rhg8 {[%clk
0:03:16.8]} 21. c5 {[%clk 0:02:31.4]} 21... g6 {[%clk 0:03:14.6]} 22. Ng4 {[%clk
0:02:24.6]} 22... gxf5 {[%clk 0:03:10]} 23. Rxf5 {[%clk 0:02:23.4]} 23... Rg5
{[%clk 0:02:58.2]} 24. Rdf1 {[%clk 0:02:20.2]} 24... Rdg8 {[%clk 0:02:44.1]} 25.
Qc4 {[%clk 0:02:10.2]} 25... a6 {[%clk 0:02:26.3]} 26. Qe6 {[%clk 0:02:01.3]}
26... Qd8 {[%clk 0:02:17]} 27. Rxg5 {[%clk 0:01:54.1]} 27... fxg5 {[%clk
0:02:14.5]} 28. Nxe5 {[%clk 0:01:40.8]} 28... Bxe5 {[%clk 0:02:09.6]} 29. Bxe5
{[%clk 0:01:36.6]} 29... Re8 {[%clk 0:02:06.1]} 30. Qd6 {[%clk 0:01:17.3]} 30...
Rxe5 {[%clk 0:01:59.7]} 31. Rf7 {[%clk 0:01:12.6]} 31... Re7 {[%clk 0:01:36.2]}
32. Rxe7 {[%clk 0:01:08.1]} 32... a5 {[%clk 0:01:20]} 33. e5 {[%clk 0:01:03.7]}
33... axb4 {[%clk 0:01:16.5]} 34. axb4 {[%clk 0:01:01.5]} 34... b6 {[%clk
0:01:12.2]} 35. Qxc6+ {[%clk 0:00:59.1]} 35... Kb8 {[%clk 0:01:10.1]} 36. Rxd7
{[%clk 0:00:53.9]} 36... Qxd7 {[%clk 0:01:09.6]} 37. Qxd7 {[%clk 0:00:52.3]}
37... Ka8 {[%clk 0:01:09.5]} 38. cxb6 {[%clk 0:00:50.7]} 38... g4 {[%clk
0:01:07.5]} 39. Qa7# {[%clk 0:00:48]} 1-0

[Event "Live Chess"]
[Site "Chess.com"]
[Date "2023.05.20"]
[Round "-"]
[White "MaximKris"]
[Black "vovanada"]
[Result "1-0"]
[WhiteElo "1877"]
[BlackElo "811"]
[TimeControl "300"]
[EndTime "12:09:42 PDT"]
[Termination "MaximKris won by resignation"]

1. e4 {[%clk 0:04:58.7]} 1... e5 {[%clk 0:04:58.5]} 2. Nf3 {[%clk 0:04:57.8]}
2... Nc6 {[%clk 0:04:57]} 3. Bb5 {[%clk 0:04:57.4]} 3... a6 {[%clk 0:04:54.2]}
4. Bxc6 {[%clk 0:04:56.7]} 4... dxc6 {[%clk 0:04:54.1]} 5. O-O {[%clk
0:04:55.7]} 5... Nf6 {[%clk 0:04:51.1]} 6. d3 {[%clk 0:04:54]} 6... Bd6 {[%clk
0:04:48.6]} 7. Bg5 {[%clk 0:04:53.6]} 7... O-O {[%clk 0:04:46.9]} 8. Nc3 {[%clk
0:04:53.2]} 8... h6 {[%clk 0:04:45.1]} 9. Bxf6 {[%clk 0:04:51.7]} 9... Qxf6
{[%clk 0:04:43.3]} 10. Qd2 {[%clk 0:04:51.6]} 10... Bg4 {[%clk 0:04:35]} 11. Qe2
{[%clk 0:04:48.7]} 11... Bxf3 {[%clk 0:04:31.6]} 12. Qxf3 {[%clk 0:04:48.6]}
12... Qxf3 {[%clk 0:04:30.4]} 13. gxf3 {[%clk 0:04:48.5]} 13... c5 {[%clk
0:04:26.8]} 14. Rad1 {[%clk 0:04:48.4]} 14... a5 {[%clk 0:04:23.1]} 15. Rfe1
{[%clk 0:04:30.1]} 15... a4 {[%clk 0:04:18.6]} 16. a3 {[%clk 0:04:26.5]} 16...
c6 {[%clk 0:04:13.2]} 17. Ne2 {[%clk 0:04:16.5]} 17... b5 {[%clk 0:04:11.8]} 18.
Ng3 {[%clk 0:04:13.5]} 18... b4 {[%clk 0:04:06.8]} 19. axb4 {[%clk 0:04:11.4]}
19... cxb4 {[%clk 0:04:06.7]} 20. Nf5 {[%clk 0:03:48.3]} 20... Bc5 {[%clk
0:03:51.7]} 21. d4 {[%clk 0:03:44.2]} 21... exd4 {[%clk 0:03:45.4]} 22. Nxd4
{[%clk 0:03:44.1]} 22... Bxd4 {[%clk 0:03:43.8]} 23. Rxd4 {[%clk 0:03:44]} 23...
b3 {[%clk 0:03:40]} 24. cxb3 {[%clk 0:03:42.7]} 24... axb3 {[%clk 0:03:39]} 25.
Rb4 {[%clk 0:03:42.3]} 25... Ra7 {[%clk 0:03:31]} 26. Rxb3 {[%clk 0:03:39.7]}
26... Rfa8 {[%clk 0:03:29.9]} 27. Rc1 {[%clk 0:03:19.7]} 27... Ra1 {[%clk
0:03:26.2]} 28. Rc3 {[%clk 0:03:17.9]} 28... R1a6 {[%clk 0:03:18.5]} 29. Rxc6
{[%clk 0:03:15.5]} 29... Rxc6 {[%clk 0:03:16.8]} 30. Rxc6 {[%clk 0:03:15.4]}
30... g5 {[%clk 0:03:08.2]} 31. b4 {[%clk 0:03:01.4]} 31... h5 {[%clk
0:03:03.1]} 32. b5 {[%clk 0:02:45.4]} 32... h4 {[%clk 0:02:53.4]} 33. b6 {[%clk
0:02:42.6]} 33... h3 {[%clk 0:02:50.8]} 34. Kf1 {[%clk 0:02:33.3]} 34... Ra1+
{[%clk 0:02:45.1]} 35. Ke2 {[%clk 0:02:19.4]} 35... Ra2+ {[%clk 0:02:43.7]} 36.
Ke3 {[%clk 0:02:17]} 36... Ra3+ {[%clk 0:02:39.3]} 37. Kd4 {[%clk 0:01:58.4]}
37... Rxf3 {[%clk 0:02:36.7]} 38. b7 {[%clk 0:01:53.6]} 38... Rxf2 {[%clk
0:02:35.2]} 39. b8=Q+ {[%clk 0:01:49.6]} 39... Kg7 {[%clk 0:02:34.3]} 40. Qe5+
{[%clk 0:01:48.1]} 40... Kh7 {[%clk 0:02:32.8]} 41. Rf6 {[%clk 0:01:44.2]} 41...
Rd2+ {[%clk 0:02:22.9]} 42. Ke3 {[%clk 0:01:42.5]} 42... g4 {[%clk 0:02:21.9]}
1-0

[Event "Live Chess"]
[Site "Chess.com"]
[Date "2023.05.20"]
[Round "-"]
[White "WelshTiger"]
[Black "Bob2pen"]
[Result "1-0"]
[WhiteElo "2403"]
[BlackElo "1791"]
[TimeControl "300"]
[EndTime "12:09:46 PDT"]
[Termination "WelshTiger won by resignation"]

1. e4 {[%clk 0:04:58.2]} 1... e6 {[%clk 0:04:58.5]} 2. d4 {[%clk 0:04:57.3]}
2... d5 {[%clk 0:04:57.5]} 3. Nd2 {[%clk 0:04:55.3]} 3... Nf6 {[%clk 0:04:56.2]}
4. e5 {[%clk 0:04:54.4]} 4... Nfd7 {[%clk 0:04:55.2]} 5. Bd3 {[%clk 0:04:51.2]}
5... c5 {[%clk 0:04:53.5]} 6. c3 {[%clk 0:04:51.1]} 6... Nc6 {[%clk 0:04:51.2]}
7. Ne2 {[%clk 0:04:49.9]} 7... cxd4 {[%clk 0:04:50.1]} 8. cxd4 {[%clk
0:04:49.8]} 8... f6 {[%clk 0:04:49.3]} 9. Nf4 {[%clk 0:04:49.2]} 9... Nxd4
{[%clk 0:04:46.9]} 10. Qh5+ {[%clk 0:04:47]} 10... Ke7 {[%clk 0:04:46]} 11.
exf6+ {[%clk 0:04:44.1]} 11... Nxf6 {[%clk 0:04:42.5]} 12. Ng6+ {[%clk
0:04:43.4]} 12... hxg6 {[%clk 0:04:41.4]} 13. Qxh8 {[%clk 0:04:43.3]} 13... Kf7
{[%clk 0:04:40.5]} 14. Qh4 {[%clk 0:04:42.3]} 14... e5 {[%clk 0:04:36.1]} 15.
Nf3 {[%clk 0:04:40.5]} 15... Nxf3+ {[%clk 0:04:32.7]} 16. gxf3 {[%clk
0:04:40.4]} 16... Bf5 {[%clk 0:04:26.5]} 17. Bxf5 {[%clk 0:04:39.3]} 17... gxf5
{[%clk 0:04:25.3]} 18. Bg5 {[%clk 0:04:39]} 18... Bb4+ {[%clk 0:04:14]} 19. Kf1
{[%clk 0:04:38.1]} 19... Be7 {[%clk 0:04:09.6]} 20. Rc1 {[%clk 0:04:31.5]} 20...
Qd6 {[%clk 0:04:05]} 21. Qa4 {[%clk 0:04:24.5]} 21... d4 {[%clk 0:03:59.6]} 22.
Qc4+ {[%clk 0:04:19.8]} 22... Qe6 {[%clk 0:03:57]} 23. Qxe6+ {[%clk 0:04:12.4]}
23... Kxe6 {[%clk 0:03:55.7]} 24. Rc7 {[%clk 0:04:12.3]} 24... Rd8 {[%clk
0:03:51.7]} 25. Rxb7 {[%clk 0:04:09.2]} 25... d3 {[%clk 0:03:50.5]} 26. Ke1
{[%clk 0:04:06.9]} 26... e4 {[%clk 0:03:41.1]} 27. fxe4 {[%clk 0:04:04.8]} 27...
Nxe4 {[%clk 0:03:38.4]} 28. Rxe7+ {[%clk 0:04:02.7]} 28... Kd5 {[%clk
0:03:36.1]} 29. Rxe4 {[%clk 0:04:01.8]} 29... Kxe4 {[%clk 0:03:34.5]} 30. Bxd8
{[%clk 0:04:00.6]} 1-0

[Event "Live Chess"]
[Site "Chess.com"]
[Date "2023.05.20"]
[Round "-"]
[White "boilerboy1"]
[Black "Hacker_2009"]
[Result "0-1"]
[WhiteElo "1058"]
[BlackElo "1921"]
[TimeControl "300"]
[EndTime "12:09:50 PDT"]
[Termination "Hacker_2009 won by resignation"]

1. e4 {[%clk 0:04:56.6]} 1... c5 {[%clk 0:04:59]} 2. c3 {[%clk 0:04:52.4]} 2...
d5 {[%clk 0:04:56]} 3. exd5 {[%clk 0:04:51.1]} 3... Qxd5 {[%clk 0:04:55.9]} 4.
Nf3 {[%clk 0:04:49]} 4... e6 {[%clk 0:04:54.1]} 5. d4 {[%clk 0:04:47.2]} 5...
Nc6 {[%clk 0:04:51.1]} 6. Be3 {[%clk 0:04:42.7]} 6... cxd4 {[%clk 0:04:46.1]} 7.
cxd4 {[%clk 0:04:39.6]} 7... Nf6 {[%clk 0:04:44.5]} 8. Nc3 {[%clk 0:04:36.3]}
8... Bb4 {[%clk 0:04:41.5]} 9. Be2 {[%clk 0:04:26.4]} 9... Ne4 {[%clk
0:04:38.6]} 10. O-O {[%clk 0:04:19.4]} 10... Nxc3 {[%clk 0:04:37.2]} 11. bxc3
{[%clk 0:04:17]} 11... Bxc3 {[%clk 0:04:36.4]} 12. Rb1 {[%clk 0:04:13]} 12...
O-O {[%clk 0:04:33.7]} 13. a3 {[%clk 0:04:06.8]} 13... Ba5 {[%clk 0:04:30.2]}
14. Rb5 {[%clk 0:04:01.2]} 14... Qd8 {[%clk 0:04:24.6]} 15. Bg5 {[%clk
0:03:47.5]} 15... f6 {[%clk 0:04:17.9]} 16. Bh4 {[%clk 0:03:39.7]} 16... a6
{[%clk 0:04:15.4]} 17. Rc5 {[%clk 0:03:28.7]} 17... Bb6 {[%clk 0:04:12]} 18. Rh5
{[%clk 0:03:20.2]} 18... Qe8 {[%clk 0:04:10]} 19. g4 {[%clk 0:03:14.7]} 19... e5
{[%clk 0:04:07.5]} 20. dxe5 {[%clk 0:03:11.4]} 20... Bxg4 {[%clk 0:04:05.6]} 21.
Bc4+ {[%clk 0:03:05.5]} 21... Kh8 {[%clk 0:04:02.8]} 22. Rxh7+ {[%clk
0:03:01.4]} 22... Kxh7 {[%clk 0:03:59.4]} 23. Qd3+ {[%clk 0:02:59.5]} 23... Qg6
{[%clk 0:03:58]} 24. Qxg6+ {[%clk 0:02:55.7]} 24... Kxg6 {[%clk 0:03:56.7]} 25.
Bd3+ {[%clk 0:02:49.4]} 25... f5 {[%clk 0:03:53]} 26. Ng5 {[%clk 0:02:39.3]}
26... Nxe5 {[%clk 0:03:48.1]} 27. Bb1 {[%clk 0:02:31.7]} 27... Rh8 {[%clk
0:03:43.7]} 28. h3 {[%clk 0:01:59.8]} 28... Rxh4 {[%clk 0:03:40.3]} 29. hxg4
{[%clk 0:01:57.9]} 29... Rxg4+ {[%clk 0:03:38.4]} 30. Kh1 {[%clk 0:01:53.3]}
30... Rh8+ {[%clk 0:03:31]} 0-1